Cogmind - Beta 15 @@@ ROGUE MODE // 2025.05.13 @ 18:05:30 Player: GiggleBox Result: Destroyed by V6-RHH(R) with Subdweller Machine Gun Performance ------------- Evolutions (0) 0 Regions Visited (2) 400 Robots Destroyed (23) 115 Value Destroyed (570) 570 Prototype IDs (0) 0 Alien Tech Used (0) 0 Bonus (0) 0 TOTAL SCORE: 1085 Bonus ------- None Cogmind --------- Core Integrity 0/250 Matter 250/300 Energy 72/100 System Corruption 0% Temperature Cool (0) Movement Core (50) Location -10/Subcaves Parts ------- > --- POWER (1) -------- (None) > --- PROPULSION (2) --- (None) > --- UTILITY (2) ------ Core Shielding > --- WEAPON (2) ------- (None) > --- INVENTORY (5) ---- Subdweller Power Source Structural Scanner Subdweller Optics Improved Terrain Scanner Seismic Detector Peak State ------------ > --- POWER ------------ Subdweller Power Source > --- PROPULSION ------- Light Treads Subdweller Monowheel > --- UTILITY ---------- High-capacity Storage Unit Core Shielding > --- WEAPON ----------- Medium Laser Subdweller Laser > --- INVENTORY -------- Ion Engine Subdweller Power Source Improved Heat Sink Small Storage Unit Structural Scanner Subdweller Optics Improved Terrain Scanner Seismic Detector Hacking Suite Medium Laser Grenade Launcher Datajack [Rating: 12] Favorites ----------- Power Ion Engine Engine Ion Engine Propulsion Light Treads Treads Light Treads Wheel Subdweller Monowheel Utility High-capacity Storage Unit Device Seismic Detector Storage High-capacity Storage Unit Protection Core Shielding Weapon Medium Laser Energy Gun Medium Laser Ballistic Gun Assault Rifle Launcher Grenade Launcher Build | -11 -10 -10 ------- Run | Yrd Mat Sub Slots Evolved . | . . . Power . | . . . Propulsion . | . . . Utility . | . . . Weapon . | . . . Parts Attached 20 | 8 4 8 Power 3 | 1 . 2 Engine 3 | 1 . 2 Core . | . . . Reactor . | . . . Propulsion 5 | 2 . 3 Treads 4 | 2 . 2 Leg . | . . . Wheel 1 | . . 1 Hover . | . . . Flight . | . . . Utility 5 | 2 3 . Device 2 | 1 1 . Storage 2 | 1 1 . Processor . | . . . Hackware . | . . . Protection 1 | . 1 . Artifact . | . . . Weapon 7 | 3 1 3 Energy Gun 5 | 2 . 3 Energy Cannon . | . . . Ballistic Gun 1 | 1 . . Ballistic Cannon . | . . . Launcher 1 | . 1 . Special Weapon . | . . . Impact Weapon . | . . . Slashing Weapon . | . . . Piercing Weapon . | . . . Special Melee Weapon . | . . . Unidentified Prototypes . | . . . Parts Lost 12 | . . 12 Power 2 | . . 2 Propulsion 5 | . . 5 Utility . | . . . Weapon 5 | . . 5 Highest Loss Streak 6 | . . 6 To Critical Strikes . | . . . Average Backups 9 | 1 9 12 Power 1 | . 1 1 Propulsion 1 | . 1 1 Utility 4 | . 4 6 Weapon 1 | . 1 2 Tool/Special . | . . . Unused Backups 6 | . . 6 Power 1 | . . 1 Propulsion . | . . . Utility 4 | . . 4 Weapon . | . . . Tool/Special 1 | . . 1 Average Slot Usage (%) 98 | . 100 96 Engine 13 | . 14 13 Treads 26 | . 28 23 Wheel 1 | . . 3 Device 8 | . 14 . Storage 13 | . 14 13 Protection 5 | . . 14 Energy Gun 26 | . 28 24 Peak Build Rating 12 | 7 10 12 Average Rating 8 | 5 8 9 On Entrance 5 | . 7 8 Naked Turns 1 | . . 1 Heaviest Build 53 | 15 51 53 Greatest Support 40 | 40 40 40 Greatest Overweight (x) 2 | 2 1 2 Average Overweight (x) . | . . 1 Largest Inventory Capacity 20 | 8 20 20 Average Capacity 16 | 7 16 19 Most Carried 15 | 2 13 15 Average Carried 9 | 1 9 12 Final Capacity 20 | 8 20 5 Final Carried 13 | 2 13 5 Class Distribution -------------------- 91% | Mutant 8% | Scavenger-Mutant Dominant Class ---------------- Mutant | -10/Materials Mutant | -10/Subcaves Resources | -11 -10 -10 ----------- Run | Yrd Mat Sub Matter Collected 485 | 274 51 160 Remotely . | . . . Salvage Created 754 | 107 404 243 Parts 54 | 16 25 13 Haulers Intercepted 1 | . 1 . Recyclers Shooed 1 | 1 . . Parts Field Recycled . | . . . Retrieved Matter . | . . . Parts Self-Destructed 5 | . . 5 Prevented . | . . . Kills | -11 -10 -10 ------- Run | Yrd Mat Sub Combat Hostiles Destroyed 15 | . 7 8 Guns 12 | . 7 5 AOE 3 | . . 3 Classes Destroyed 9 | 1 5 3 Worker 1 | . 1 . Tunneler 4 | 4 . . Hauler 1 | . 1 . Operator 1 | . 1 . Watcher 1 | . 1 . Swarmer 3 | . . 3 Grunt 7 | . 7 . Artisan 1 | . . 1 Subdweller 5 | . . 5 Best Kill Streak 3 | 2 2 3 Combat Bots Only 3 | . 2 3 Max Kills in Single Turn 2 | 1 1 2 Gunslinging . | . . . Exploded 2 | . . 2 Melee . | . . . Uniques/NPCs Destroyed . | . . . Combat | -11 -10 -10 -------- Run | Yrd Mat Sub Hostile Shots Fired 89 | . 39 50 Missed 26 | . 11 15 Hits 63 | . 28 35 Projectile 63 | . 28 35 AOE 7 | . . 7 Critical Strikes 1 | . 1 . Damage Taken 1469 | . 371 1098 Core 257 | . 92 165 Absorbed by Shields . | . . . Redirected to Shielding 36 | . . 36 Core Remaining (%) 100 | 100 . . Volleys Fired 86 | 11 33 42 Largest 2 | 2 2 2 Hottest 110 | 100 100 110 Shots Fired 145 | 22 66 57 Gun 136 | 22 66 48 Cannon . | . . . Launcher 9 | . . 9 Special . | . . . Kinetic . | . . . Thermal 131 | 22 66 43 Explosive 9 | . . 9 Electromagnetic 5 | . . 5 Robot Hit Streak 17 | 2 13 17 Robot Miss Streak 4 | 4 2 3 Penetration Max . | . . . Secondary Targets 1 | . 1 . Max Gunslinging Chain 1 | . 1 . Shots Hit Robots 100 | 9 48 43 Core Hits 42 | 4 22 16 Critical Kills . | . . . Critical Parts Destroyed . | . . . Critical Strikes 7 | . 5 2 Burn 7 | . 5 2 Melee Attacks . | . . . Impact . | . . . Slashing . | . . . Piercing . | . . . Sneak Attacks . | . . . Combat Hostiles . | . . . Follow-up Attacks . | . . . Damage Inflicted 1510 | 118 607 785 Guns 1111 | 115 600 396 Cannons . | . . . Explosions 389 | . . 389 Melee . | . . . Ramming 10 | 3 7 . Kinetic . | . . . Thermal 1077 | 115 600 362 Explosive 389 | . . 389 Electromagnetic 34 | . . 34 Impact . | . . . Slashing . | . . . Piercing . | . . . Highest Corruption . | . . . Average Corruption . | . . . Corruption Purged . | . . . Corruption Blocked . | . . . Overload Shots . | . . . Overflow Damage 6 | . . 6 Projectiles . | . . . Explosions 6 | . . 6 Melee . | . . . Knockbacks . | . . . Impact . | . . . Kinetic . | . . . Secondary . | . . . Self-Inflicted Damage 50 | . . 50 Shots 4 | . . 4 Rammed 3 | 1 2 . Targets Rammed 4 | 1 3 . Kicked . | . . . Crushed 1 | . 1 . Highest Temperature 225 | 177 225 2 Average Temperature 60 | 56 64 2 Received Heat Transfer 348 | . 225 123 Siege Activations . | . . . Martial Activations . | . . . Shielding Activations . | . . . Robots Disrupted . | . . . Combat Hostiles . | . . . Robots Corrupted . | . . . Combat Hostiles . | . . . Parts Fried . | . . . Impact Corruptions . | . . . Robots Melted . | . . . Combat Hostiles . | . . . Parts Melted 5 | . 4 1 Heat Transferred 3651 | 333 2146 1172 Parts Sabotaged . | . . . Parts Stolen . | . . . Parts Stripped . | . . . Power Chain Reactions . | . . . Alert | -11 -10 -10 ------- Run | Yrd Mat Sub Maximum Alert Level . | . . . Low Security (%) 100 | 100 100 . Level 1 . | . . . Level 2 . | . . . Level 3 . | . . . Level 4 . | . . . Level 5 . | . . . High Security . | . . . Max Security . | . . . Peak Influence 50 | 5 50 . Initial . | . . . Average 6 | . 8 . Influence Increases 343 | 20 233 90 Destroy 0b10 Robot/C 200 | . 140 60 Destroy 0b10 Robot/NC 40 | 20 20 . Destroy Leader 34 | . 34 . Successful Hack 24 | . 24 . Lose Combat Pursuer 45 | . 15 30 Influence Decreases 343 | 20 233 90 Time Decay 317 | 20 233 64 Lost Part 26 | . . 26 Squads Dispatched . | . . . Investigation . | . . . Extermination . | . . . Reinforcement . | . . . Assault . | . . . Garrison . | . . . Intercept . | . . . Searches Triggered . | . . . Construction Impeded . | . . . Haulers Reinforced . | . . . Active Scanning Responses . | . . . Cargo Convoy Interrupts . | . . . Stealth | -11 -10 -10 --------- Run | Yrd Mat Sub Distress Signals . | . . . Communications Jammed . | . . . Distress Signals . | . . . Times Spotted 25 | . 14 11 Peak Tracking Total 3 | . 2 3 Tactical Retreats 2 | . 1 1 Traps | -11 -10 -10 ------- Run | Yrd Mat Sub Traps Triggered 2 | . 1 1 Indirectly . | . . . Trap Hack Attempts . | . . . Triggered . | . . . Disarmed . | . . . Reprogrammed . | . . . Reused . | . . . Traps Extracted . | . . . Installed . | . . . Triggered . | . . . Machines | -11 -10 -10 ---------- Run | Yrd Mat Sub Machines Disabled . | . . . Max in Single Turn . | . . . Machines Repaired . | . . . Machines Dismantled . | . . . Machines Sabotaged . | . . . Overloaded Fab Kills . | . . . Hacking | -11 -10 -10 --------- Run | Yrd Mat Sub Machines Accessed 5 | . 5 . Terminals 5 | . 5 . Fabricators . | . . . Repair Stations . | . . . Recycling Units . | . . . Scanalyzers . | . . . Garrison Access . | . . . Total Hacks 18 | . 18 . Successful 10 | . 10 . Failed 8 | . 8 . Catastrophic 2 | . 2 . Database Lockouts . | . . . Manual 14 | . 14 . Terminals 18 | . 18 . Fabricators . | . . . Repair Stations . | . . . Recycling Units . | . . . Scanalyzers . | . . . Garrison Access . | . . . Terminal Hacks 3 | . 3 . Part Schematic 1 | . 1 . Robot Analysis 1 | . 1 . Locate Traps 1 | . 1 . Fabricator Hacks . | . . . Repair Station Hacks . | . . . Recycling Unit Hacks . | . . . Scanalyzer . | . . . Garrison Access Hacks . | . . . Unauthorized Hacks 7 | . 7 . Terminals 7 | . 7 . Botnet 1 | . 1 . Operators 1 | . 1 . Skim 5 | . 5 . Fabricators . | . . . Repair Stations . | . . . Recycling Units . | . . . Scanalyzers . | . . . Garrison Access . | . . . Data Cores Recovered 1 | . 1 . Used . | . . . Hacking Detections 5 | . 5 . Full Trace Events . | . . . Feedback Events . | . . . Feedback Blocked . | . . . Robot Schematics Acquired . | . . . Robots Built . | . . . Authchips . | . . . Time . | . . . Total Robot Build Rating . | . . . Part Schematics Acquired 1 | . 1 . Parts Built . | . . . Authchips . | . . . Time . | . . . Total Part Build Rating . | . . . Parts Repaired . | . . . Time . | . . . Parts Recycled . | . . . Recycled Matter . | . . . Retrieved Matter . | . . . Retrieved Components . | . . . Parts Scanalyzed . | . . . Part Schematics Acquired . | . . . Parts Damaged . | . . . Bothacking | -11 -10 -10 ------------ Run | Yrd Mat Sub Used RIF Installer . | . . . Robots Hacked . | . . . Non-combat . | . . . Combat . | . . . Robot Hacks Applied . | . . . Relay Couplers Released . | . . . Fabnet Peak Effective % . | . . . Robots Rewired . | . . . Allies Hacked . | . . . Hacks Repelled . | . . . Allies | -11 -10 -10 -------- Run | Yrd Mat Sub Total Allies . | . . . Largest Group . | . . . Highest-Rated Group . | . . . Highest-Rated Ally . | . . . Total Orders . | . . . Ally Attacks . | . . . Total Damage . | . . . Kills . | . . . Allies Corrupted . | . . . Allies Melted . | . . . Intel | -11 -10 -10 ------- Run | Yrd Mat Sub Active Infowar (turns) 1085 | 26 1059 . Seismic 1085 | 26 1059 . Robot Analysis Total 1 | . 1 . Derelict Logs Recovered . | . . . Drone Launches . | . . . Drone Recoveries . | . . . Exploration | -11 -10 -10 ------------- Run | Yrd Mat Sub Turns Passed 2200 | 257 1217 726 Spaces Moved 860 | 136 430 294 Core 23 | 21 . 2 Treads 726 | 115 430 181 Legs . | . . . Wheels 111 | . . 111 Hover . | . . . Flight . | . . . Fastest Speed 50 | 50 160 50 Average Speed 196 | 148 212 197 Slowest Speed 240 | 160 240 240 Overloaded Moves . | . . . Propulsion Burnouts . | . . . Robots Hopped . | . . . Potential Cave-ins . | . . . Cave-ins Triggered . | . . . Exploration Rate (%) 29 | 8 66 13 Regions Visited 2 Branch Regions 1 Pre-discovered Areas 1 | . 1 . Known Exits Taken 1 | . 1 . Unknown Exits Taken 1 | 1 . . Scrap Searched . | . . . Spaces Dug . | . . . Terrain Destroyed 40 | . . 40 Melee . | . . . Projectile . | . . . AOE 40 | . . 40 Terrain Rammed . | . . . Walls Destroyed . | . . . Machines Disabled . | . . . Actions | -11 -10 -10 --------- Run | Yrd Mat Sub Total 1206 | 165 662 379 Wait 209 | 8 179 22 Move 858 | 135 429 294 Hop . | . . . Pick Up 17 | 2 10 5 Fast Attach 9 | 7 1 1 Attach 9 | . . 9 Detach 1 | . . 1 Swap 13 | 1 7 5 Drop . | . . . Fire 86 | 11 33 42 Melee . | . . . Ram . | . . . Kick . | . . . Crush 4 | 1 3 . Escape Stasis . | . . . Rewire . | . . . Trap . | . . . Miscellaneous . | . . . Route ------- -11/Scrapyard -10/Materials (discovered 5 exits: *Mat x3 / [*Min] / *Sub) -10/Subcaves (discovered 3 exits: Mat x2 / [*Rec]) History --------- Turn | Location | Event 44 | -11/Scrapyard | Discovered new exit (range 16) 258 | -11/Scrapyard | Entered Materials 316 | -10/Materials | Build established: Mutant 529 | -10/Materials | Discovered new exit (range 3) 773 | -10/Materials | Discovered new exit (range 16) 1055 | -10/Materials | Identified exit to Materials 1055 | -10/Materials | Identified exit to Subcaves 1146 | -10/Materials | Loaded intel: 11 interactive machine locations 1475 | -10/Materials | Entered Subcaves 1476 | -10/Subcaves | Identified exit to Materials 1524 | -10/Subcaves | Ambushed by angry Subdweller bent on revenge 1578 | -10/Subcaves | Lost 3 parts (1p1n1w) 2005 | -10/Subcaves | Core integrity fell below 50% 2009 | -10/Subcaves | Shifting Twisted Machinery released Battle Rifle 2019 | -10/Subcaves | Discovered new exit (range 11) 2034 | -10/Subcaves | Lost 3 parts (2n1w) 2159 | -10/Subcaves | Ambushed by Subdweller buried in earth 2177 | -10/Subcaves | Core integrity fell below 20% 2198 | -10/Subcaves | Released all parts (3) 2201 | -10/Subcaves | Destroyed by V6-RHH(R) with Subdweller Machine Gun Last Messages --------------- 02019_ EXIT=FOUND 02023_ Flight Unit fries itself beyond repair. 02023_ Lgt. Ion Engine fries itself beyond repair. 02092_ Acquired 35 matter. 02094_ Acquired 30 matter. 02149_ The unstable cave ceiling collapses. 02159_ Grenade Launcher destroyed. 02160_ XC-6FS(R): "NOSTUCKSUB!" 02161_ XC-6FS(R) destroyed. 02170_ Med. Laser destroyed. 02170_ Sub. Monowheel destroyed. 02172_ Sub. Power Source destroyed. 02176_ Lgt. Treads destroyed. 02177_ Sub. Laser shoots sparks and powers down. 02182_ VV-TP0(R) destroyed. 02197_ Med. Laser destroyed. 02198_ Released Broken Sub. Laser. 02198_ Released Hcp. Storage Unit. 02198_ Released Core Shielding. 02199_ Acquired Core Shielding. Map ----- +----------------------------------------------------+ | ??????????????????????????????????????????? | | ??????????????????????????????????????????? | | ??????????????????????????????????????????? | | ??????????????????????????????????????????? | | ??????????????????????????????????????????? | | ??????????????????????????????????????????? | | ??????????????????????????????????????????? | | ??????????????????????????????????????????? | | ??????????????????????????????????????????? | | ??????????????? ###???????????????????????? | | ???????????????"" ???????????????????????? | | ????????????? "" ???????????????????????? | | ?????????????? "" ???????????????????????? | | ????????????#?# " ###????????????????????? | | ??????? # ### # "" # ????????????????????? | | ???????? "" " ###?????????????????? | | ??????????? ! ##????????????????? | | ??????????????# "&% #####?????????????? | | ??????????????# " ! #?????????????? | | ??????????????# " #?????????????? | | ??????????????# ""R & #?????????????? | | ??????????????#### *%! #?????????????? | | ?????????????????# & ;##????????????? | | ?????????????????## ##???????????? | | ??????????????????# ##??????????? | | ??????????????????# @ #??????????? | | ??????????????????# ! #??????????? | | ??????????????????## *[/ ##??????????? | | ??????????????????# !! #???????????? | | ??????????????????# ! #???????????? | | ??????????????????## #??????????? | | ???????????????????# ##??????????? | | ???????????????????### # # ???????????? | | ?????????????????###?# ######??????????? | | ########?#####?### ### ###???????????????? | | # # ### !%### #?????????????????? | | ! ! ### ##?????????????????? | | ## # ##### ######??????????????????? | | ##########???## ##?????????????????????? | | ##?????????????# #?????????????????????? | | #??????????????# #? ?????????????????? | | ??????????????## " #? ????????????????? | | ?????????????## "" ## #????????????????? | | ?????????????# "" ## #????????????????? | | ?????????????# """ ## #????????????????? | | ?????????????# """"" ##""##???????????????? | | ?????????????## ##"""##??????????????? | | ??????????????## ###""""#??????????????? | | ???????????????# #### ""#???????????????? | | ??????????????## ### #????????????????? | +----------------------------------------------------+ Best States ------------- Heat Dissipation 39 Energy Generation 15 Energy Capacity 250 Matter Stores 300 Matter Capacity 300 Sight Range 16 Terrain Scan Density 10 Core Shielding 20 Evasion (%) 50 Recoil Reduction 2 Item Schematics ----------------- Hcp. Storage Unit | -10/Materials | Hacked Robot Schematics ------------------ None Fabricated ------------ Nothing Repaired ---------- Nothing Alien Tech Used ----------------- None Achievements -------------- None Challenges ------------ None Game ------ Seed PropulsionChromaticCharge Manual? 0 Play Time 00:13:39 Cumulative 88.8 hours Start 2025.05.13 @ 17:25:28 End 2025.05.13 @ 18:05:30 Sessions 1 Manual Loads 0 Difficulty Rogue Special Mode None Game No. 96 Rogue 96 Adventurer 0 Explorer 0 Win Type - Total 1 Types 1/0/0/0/0/0/0/0/0/0 Lore% 48 Gallery% 50 Achievement% 44 Wizard Run 0 Options --------- Layout 0 ASCII 0 Keyboard 1 Movement Numpad Keybinds 0 Fullscreen 1 Font 24/Terminus Map View 76x50 Zoom Use 0% Tactical HUD 1 Map Filters NONE Filters NONE Steam 1 RUN: 1664e424-eb46-4cd8-8ac0-884fbae3af4a